fUSD/lending_fUSD_20240424
["ID","MTS","AMOUNT","RATE_DAILY","PERIOD"]
[323438623,1713989440115,-1000.0,0.000107,2]
[323438624,1713989440124,-1000.0,0.000107,2]
[323438625,1713989440133,-1000.0,0.000107,2]
[323438626,1713989440142,-1300.0,0.000107,2]
[323438627,1713989440151,-157.32051669,0.000107,2]
[323438628,1713989440163,-842.67948331,0.000107,2]
[323438629,1713989440171,-1000.0,0.000107,2]
[323438630,1713989440181,-1000.0,0.000107,2]
[323438631,1713989440190,-5700.0,0.000107,3]
[323438632,1713989440199,-153.72,0.00010707,2]
[323438633,1713989440208,-153.72,0.00010746,2]
[323438634,1713989440218,-48852.40068515,0.0001075,2]
[323438635,1713989440227,-3000.0,0.0001075,2]
[323438636,1713989440236,-2279.5534,0.00010756,2]
[323438637,1713989440246,-11353.899,0.00010756,2]
[323438638,1713989440255,-725.915,0.00010756,2]
[323438639,1713989440264,-67223.677,0.00010756,2]
[323438640,1713989440277,-173.5956,0.00010756,2]
[323438641,1713989440286,-500.0,0.00010756,2]
[323438642,1713989440296,-2004.537,0.00010756,2]
[323438643,1713989440305,-100000.0,0.00010757,2]
[323438644,1713989440315,-153.72,0.00010786,2]
[323438645,1713989440325,-11500.0,0.000108,3]
[323438646,1713989440334,-1000.0,0.000108,2]
[323438647,1713989440343,-153.72,0.00010825,2]
[323438648,1713989440353,-216.02707233,0.00010854,2]
[323438649,1713989440363,-212.1763452,0.00010854,2]
[323438650,1713989440372,-571.17879386,0.00010854,2]
[323438651,1713989440382,-1292.97161679,0.00010854,2]
[323438652,1713989440391,-234.92932396,0.00010854,2]
[323438653,1713989440401,-164.13442256,0.00010854,2]
[323438654,1713989440411,-1001.56124984,0.00010854,2]
[323438655,1713989440421,-226.33295605,0.00010854,2]
[323438656,1713989440430,-173.44820365,0.00010858,2]
[323438657,1713989440440,-275.96253422,0.00010858,2]
[323438658,1713989440450,-209.52982044,0.00010858,2]
[323438659,1713989440460,-12093.60177526,0.0001086,2]
[323438660,1713989440469,-153.72,0.00010864,2]
[323438661,1713989440478,-255.33,0.0001088,2]
[323438662,1713989440488,-17200.0,0.000109,3]
[323438663,1713989440497,-1000.0,0.000109,2]
[323438664,1713989440506,-153.72,0.00010904,2]
[323438665,1713989440516,-260.8978475,0.00010943,2]
[323438666,1713989440529,-153.72,0.00010943,2]
[323438667,1713989440538,-781.26841583,0.00010956,2]
[323438668,1713989440547,-1081.54694968,0.00010957,3]
[323438669,1713989440557,-325.62172303,0.00010958,2]
[323438670,1713989440567,-184.60316647,0.00010958,2]
[323438671,1713989440576,-500.0,0.00010958,2]
[323438672,1713989440585,-500.0,0.00010958,2]
[323438673,1713989440595,-500.0,0.00010958,2]
[323438674,1713989440604,-500.0,0.00010958,2]
[323438675,1713989440617,-500.0,0.00010958,2]
[323438676,1713989440626,-520.14,0.00010958,2]
[323438677,1713989440636,-811.2,0.00010958,2]
[323438678,1713989440646,-323.59,0.00010958,2]
[323438679,1713989440658,-775.1,0.00010958,2]
[323438680,1713989440669,-500.0,0.00010958,2]
[323438681,1713989440679,-500.0,0.00010958,2]
[323438682,1713989440689,-500.0,0.00010958,2]
[323438683,1713989440699,-500.0,0.00010958,2]
[323438684,1713989440708,-500.0,0.00010958,2]
[323438685,1713989440717,-710.08,0.00010958,2]
[323438686,1713989440726,-151.0,0.00010958,2]
[323438687,1713989440735,-201.18646221,0.00010958,2]
[323438688,1713989440744,-500.0,0.00010958,2]
[323438689,1713989440754,-247.66988734,0.00010958,2]
[323438690,1713989440763,-500.0,0.00010958,2]
[323438691,1713989440774,-500.0,0.00010958,2]
[323438692,1713989440784,-500.0,0.00010958,2]
[323438693,1713989440794,-500.0,0.00010958,2]
[323438694,1713989440803,-500.0,0.00010958,2]
[323438695,1713989440813,-500.0,0.00010958,2]
[323438696,1713989440822,-500.0,0.00010958,2]
[323438697,1713989440831,-500.0,0.00010958,2]
[323438698,1713989440841,-529.56926151,0.00010958,2]
[323438699,1713989440850,-500.0,0.00010958,2]
[323438700,1713989440859,-500.0,0.00010958,2]
[323438701,1713989440868,-500.0,0.00010958,2]
[323438702,1713989440878,-500.0,0.00010958,2]
[323438703,1713989440888,-500.0,0.00010958,2]
[323438704,1713989440897,-1126.96,0.00010958,2]
[323438705,1713989440906,-758.6,0.00010958,2]
[323438706,1713989440915,-500.0,0.00010958,2]
[323438707,1713989440925,-573.06,0.00010958,2]
[323438708,1713989440934,-151.0,0.00010958,2]
[323438709,1713989440943,-150.0,0.00010958,2]
[323438710,1713989440953,-500.0,0.00010958,2]
[323438711,1713989440962,-307.18841651,0.00010958,2]
[323438712,1713989440971,-500.0,0.00010958,2]
[323438713,1713989440981,-717.69,0.00010958,2]
[323438714,1713989440990,-500.0,0.00010958,2]
[323438715,1713989441000,-500.0,0.00010958,2]
[323438716,1713989441011,-500.0,0.00010958,2]
[323438717,1713989441021,-500.0,0.00010958,2]
[323438718,1713989441032,-500.0,0.00010958,2]
[323438719,1713989441041,-500.0,0.00010958,2]
[323438720,1713989441050,-500.0,0.00010958,2]
[323438721,1713989441060,-500.0,0.00010958,2]
[323438722,1713989441069,-500.0,0.00010958,2]
[323438723,1713989441078,-500.0,0.00010958,2]
[323438724,1713989441087,-500.0,0.00010958,2]
[323438725,1713989441096,-500.0,0.00010958,2]
[323438726,1713989441105,-500.0,0.00010958,2]
[323438727,1713989441115,-500.0,0.00010958,2]
[323438728,1713989441124,-500.0,0.00010958,2]
[323438729,1713989441133,-500.0,0.00010958,2]
[323438730,1713989441143,-500.0,0.00010958,2]
[323438731,1713989441152,-631.0,0.00010958,2]
[323438732,1713989441173,-500.0,0.00010958,2]
[323438733,1713989441182,-637.64,0.00010958,2]
[323438734,1713989441192,-500.0,0.00010958,2]
[323438735,1713989441202,-500.0,0.00010958,2]
[323438736,1713989441211,-500.0,0.00010958,2]
[323438737,1713989441223,-500.0,0.00010958,2]
[323438738,1713989441232,-644.04,0.00010958,2]
[323438739,1713989441242,-500.0,0.00010958,2]
[323438740,1713989441251,-500.0,0.00010958,2]
[323438741,1713989441261,-547.08,0.00010958,2]
[323438742,1713989441270,-500.0,0.00010958,2]
[323438743,1713989441283,-500.0,0.00010958,2]
[323438744,1713989441293,-3321.78,0.00010958,2]
[323438745,1713989441303,-745.94,0.00010958,2]
[323438746,1713989441312,-500.0,0.00010958,2]
[323438747,1713989441322,-500.0,0.00010958,2]
[323438748,1713989441332,-500.0,0.00010958,2]
[323438749,1713989441341,-1522.72,0.00010958,2]
[323438750,1713989441351,-1611.4,0.00010958,2]
[323438751,1713989441360,-670.23,0.00010958,2]
[323438752,1713989441370,-500.0,0.00010958,2]
[323438753,1713989441381,-533.27,0.00010958,2]
[323438754,1713989441391,-500.0,0.00010958,2]
[323438755,1713989441401,-641.17,0.00010958,2]
[323438756,1713989441411,-500.0,0.00010958,2]
[323438757,1713989441421,-744.93,0.00010958,2]
[323438758,1713989441430,-1767.47,0.00010958,2]
[323438759,1713989441440,-1181.65,0.00010958,2]
[323438760,1713989441450,-500.0,0.00010958,2]
[323438761,1713989441460,-514.3,0.00010958,2]
[323438762,1713989441470,-500.0,0.00010958,2]
[323438763,1713989441481,-3164.69,0.00010958,2]
[323438764,1713989441491,-2614.39,0.00010958,2]
[323438765,1713989441500,-2645.22,0.00010958,2]
[323438766,1713989441510,-500.0,0.00010958,2]
[323438767,1713989441520,-1333.09,0.00010958,2]
[323438768,1713989441532,-551.25,0.00010958,2]
[323438769,1713989441542,-500.0,0.00010958,2]
[323438770,1713989441551,-1190.55,0.00010958,2]
[323438771,1713989441564,-500.0,0.00010958,2]
[323438772,1713989441574,-5265.15,0.00010958,2]
[323438773,1713989441585,-1775.27,0.00010958,2]
[323438774,1713989441596,-1284.9,0.00010958,2]
[323438775,1713989441606,-500.0,0.00010958,2]
[323438776,1713989441615,-500.0,0.00010958,2]
[323438777,1713989441627,-940.15,0.00010958,2]
[323438778,1713989441640,-4685.47,0.00010958,2]
[323438779,1713989441652,-244.98596093,0.00010958,2]
[323438780,1713989441661,-1766.81,0.00010958,2]
[323438781,1713989441672,-868.64,0.00010958,2]
[323438782,1713989441682,-1380.86,0.00010958,2]
[323438783,1713989441691,-898.95,0.00010958,2]
[323438784,1713989441702,-873.45,0.00010958,2]
[323438785,1713989441711,-815.41,0.00010958,2]
[323438786,1713989441721,-2500.86,0.00010958,2]
[323438787,1713989441731,-500.0,0.00010958,2]
[323438788,1713989441742,-500.0,0.00010958,2]
[323438789,1713989441752,-500.0,0.00010958,2]
[323438790,1713989441761,-767.73,0.00010958,2]
[323438791,1713989441771,-500.0,0.00010958,2]
[323438792,1713989441781,-545.89,0.00010958,2]
[323438793,1713989441791,-500.0,0.00010958,2]
[323438794,1713989441800,-609.76,0.00010958,2]
[323438795,1713989441810,-4170.22,0.00010958,2]
[323438796,1713989441819,-3376.49,0.00010958,2]
[323438797,1713989441829,-500.0,0.00010958,2]
[323438798,1713989441838,-500.0,0.00010958,2]
[323438799,1713989441848,-701.68,0.00010958,2]
[323438800,1713989441859,-2509.728609,0.00010958,2]
[323438801,1713989441869,-1673.19,0.00010958,2]
[323438802,1713989441880,-1148.68,0.00010958,2]
[323438803,1713989441889,-1154.22,0.00010958,2]
[323438804,1713989441899,-1074.95,0.00010958,2]
[323438805,1713989441909,-2509.728609,0.00010958,2]
[323438806,1713989441918,-764.02,0.00010958,2]
[323438807,1713989441928,-3358.68,0.00010958,2]
[323438808,1713989441937,-924.33,0.00010958,2]
[323438809,1713989441947,-500.0,0.00010958,2]
[323438810,1713989441956,-500.0,0.00010958,2]
[323438811,1713989441965,-500.0,0.00010958,2]
[323438812,1713989441975,-920.93,0.00010958,2]
[323438813,1713989441986,-500.0,0.00010958,2]
[323438814,1713989441995,-500.0,0.00010958,2]
[323438815,1713989442005,-574.83,0.00010958,2]
[323438816,1713989442014,-570.4,0.00010958,2]
[323438817,1713989442028,-500.0,0.00010958,2]
[323438818,1713989442038,-603.97,0.00010958,2]
[323438819,1713989442047,-1447.91,0.00010958,2]
[323438820,1713989442056,-1472.93,0.00010958,2]
[323438821,1713989442066,-2545.41,0.00010958,2]
[323438822,1713989442076,-500.0,0.00010958,2]
[323438823,1713989442085,-581.37,0.00010958,2]
[323438824,1713989442095,-500.0,0.00010958,2]
[323438825,1713989442104,-794.23,0.00010958,2]
[323438826,1713989442113,-500.0,0.00010958,2]
[323438827,1713989442123,-773.79,0.00010958,2]
[323438828,1713989442133,-500.0,0.00010958,2]
[323438829,1713989442142,-500.0,0.00010958,2]
[323438830,1713989442151,-1469.73,0.00010958,2]
[323438831,1713989442161,-500.0,0.00010958,2]
[323438832,1713989442170,-500.0,0.00010958,2]
[323438833,1713989442179,-1784.78,0.00010958,2]
[323438834,1713989442190,-1802.11,0.00010958,2]
[323438835,1713989442200,-1001.49,0.00010958,2]
[323438836,1713989442209,-1715.45,0.00010958,2]
[323438837,1713989442219,-500.0,0.00010958,2]
[323438838,1713989442229,-500.0,0.00010958,2]
[323438839,1713989442239,-500.0,0.00010958,2]
[323438840,1713989442249,-500.0,0.00010958,2]
[323438841,1713989442259,-1240.54,0.00010958,2]
[323438842,1713989442269,-537.63894474,0.00010958,2]
[323438843,1713989442281,-500.0,0.00010958,2]
[323438844,1713989442290,-2543.79,0.00010958,2]
[323438845,1713989442300,-2532.2,0.00010958,2]
[323438846,1713989442310,-500.0,0.00010958,2]
[323438847,1713989442320,-1601.58,0.00010958,2]
[323438848,1713989442329,-996.36,0.00010958,2]
[323438849,1713989442339,-212.35559168,0.00010958,2]
[323438850,1713989442350,-500.0,0.00010958,2]
[323438851,1713989442361,-500.0,0.00010958,2]
[323438852,1713989442370,-339.51884844,0.00010958,2]
[323438853,1713989442380,-1529.71,0.00010958,2]
[323438854,1713989442390,-500.0,0.00010958,2]
[323438855,1713989442400,-500.0,0.00010958,2]
[323438856,1713989442409,-193.28081679,0.00010958,2]
[323438857,1713989442420,-197.11738096,0.00010958,2]
[323438858,1713989442430,-500.0,0.00010958,2]
[323438859,1713989442440,-3254.92,0.00010958,2]
[323438860,1713989442449,-2233.25,0.00010958,2]
[323438861,1713989442459,-237.38427994,0.00010958,2]
[323438862,1713989442469,-500.0,0.00010958,2]
[323438863,1713989442479,-500.0,0.00010958,2]
[323438864,1713989442489,-968.21,0.00010958,2]
[323438865,1713989442499,-366.97804478,0.00010958,2]
[323438866,1713989442509,-500.0,0.00010958,2]
[323438867,1713989442518,-1343.64,0.00010958,2]
[323438868,1713989442530,-3231.17,0.00010958,2]
[323438870,1713989442540,-893.59,0.00010958,2]
[323438872,1713989442550,-500.0,0.00010958,2]
[323438875,1713989442559,-500.0,0.00010958,2]
[323438878,1713989442569,-500.0,0.00010958,2]
[323438880,1713989442579,-500.0,0.00010958,2]
[323438881,1713989442589,-971.01,0.00010958,2]
[323438883,1713989442599,-500.0,0.00010958,2]
[323438884,1713989442611,-668.12,0.00010958,2]
[323438885,1713989442620,-1136.58,0.00010958,2]
[323438886,1713989442630,-1599.92177834,0.00010958,2]
[323438910,1713989443216,-275.49822166,0.00010958,2]
[323438911,1713989443226,-416.90228149,0.00010958,2]
[323438912,1713989443237,-83.09771851,0.00010958,2]
[323438913,1713989443246,-409.64578148,0.00010958,2]
[323438914,1713989443260,-90.35421852,0.00010958,2]
[323438915,1713989443269,-368.33336954,0.00010958,2]
[323438917,1713989443298,-460.63094984,0.00010958,2]
[323438918,1713989443318,-241.91568062,0.00010958,2]
[323438919,1713989443328,-500.0,0.00010958,2]
[323438920,1713989443337,-500.0,0.00010958,2]
[323438921,1713989443346,-5724.31,0.00010958,2]
[323438922,1713989443355,-1477.94,0.00010958,2]
[323438923,1713989443365,-433.00209493,0.00010958,2]
[323438924,1713989443374,-936.9,0.00010958,2]
[323438925,1713989443384,-1149.26,0.00010958,2]
[323438926,1713989443393,-1341.42,0.00010958,2]
[323438927,1713989443402,-778.1,0.00010958,2]
[323438928,1713989443412,-500.0,0.00010958,2]
[323438929,1713989443423,-500.0,0.00010958,2]
[323438930,1713989443432,-500.0,0.00010958,2]
[323438931,1713989443442,-500.0,0.00010958,2]
[323438932,1713989443452,-500.0,0.00010958,2]
[323438933,1713989443461,-500.0,0.00010958,2]
[323438934,1713989443471,-500.0,0.00010958,2]
[323438935,1713989443481,-186.13983183,0.00010958,2]
[323438936,1713989443493,-797.41016817,0.00010958,2]
[323438937,1713989443503,-844.95,0.00010958,2]
[323438938,1713989443512,-150.0,0.00010959,2]
[323438939,1713989443523,-420.728544,0.00010959,2]
[323438940,1713989443533,-420.728544,0.00010959,2]
[323438941,1713989443544,-2000.0,0.00010959,3]
[323438942,1713989443554,-153.72,0.00010982,2]
[323438943,1713989443564,-3000.0,0.00011,2]
[323438944,1713989443574,-12663.46024248,0.00011,2]
[323438945,1713989443593,-666.14594998,0.00011,2]
[323438946,1713989443604,-1147.94373023,0.00011,2]
[323438947,1713989443615,-10931.55257449,0.00011,2]
[323438948,1713989444146,-253.20658382,0.00010958,2]
[323438949,1713989444179,-1629.9718504,0.00010958,2]
[323438950,1713989444191,-885.43156578,0.00010958,2]
[323438951,1713989444201,-5653.25643422,0.00011,2]
[323438952,1713989444213,-1458.78306831,0.00011,2]
[323438953,1713989444253,-0.01096545,0.00011,2]
[323438954,1713989444268,-3149.22220706,0.00011,2]
[323438955,1713989444295,-1456.85084849,0.00011,2]
[323438956,1713989444314,-1748.84904184,0.00011,2]
[323438977,1713989445823,-753.601792,0.0001,2]
[323438978,1713989445881,-1655.40252715,0.0001,2]
[323438979,1713989445891,-500.0,0.00010528,2]
[323438980,1713989445900,-927.90514942,0.00010957,2]
[323438981,1713989445912,-2066.06392,0.00010957,2]
[323438982,1713989445990,-271.29000148,0.00010957,2]
[323438984,1713989765097,384.45,8.219e-05,2]
[323438985,1713989891410,164.83,7.729e-05,2]
[323438995,1713990022195,189.91,8.219e-05,2]
[323438998,1713990096976,4844.62857291,8.219e-05,2]
[323439000,1713990195802,20172.44350271,8.219e-05,2]
[323439003,1713990282393,405.97,8.219e-05,2]
[323439009,1713990355089,7808.60486136,0.00025975,90]
[323439019,1713990452729,164.83,7.315e-05,2]
[323439020,1713990466665,-1700954.17378429,0.00025523,7]
[323439021,1713990466687,-157016.19637083,0.00025523,7]
[323439022,1713990466712,-142029.62984488,0.00025523,7]
[323439023,1713990471754,-24975.04196865,0.00025523,7]
[323439024,1713990471779,-250.0,0.00025523,5]
[323439025,1713990471804,-250.0,0.00025523,6]
[323439026,1713990471827,-250.0,0.00025523,7]
[323439027,1713990471852,-150.0,0.00025523,3]
[323439028,1713990471875,-250.0,0.00025523,4]
[323439029,1713990471898,-250.0,0.00025523,3]
[323439030,1713990471924,-19667.96066592,0.00025523,4]
[323439031,1713990471946,-3049.0,0.00025523,10]
[323439032,1713990471971,-4800.0,0.00025523,10]
[323439033,1713990471998,-4601.20855584,0.00025523,10]
[323439034,1713990472023,-93216.16647245,0.00025523,10]
[323439035,1713990472050,-300.0,0.00025523,15]
[323439036,1713990472075,-57544.79666474,0.00025523,20]
[323439037,1713990472102,-8000.0,0.00025523,7]
[323439038,1713990472128,-9991.16998537,0.00025523,15]
[323439039,1713990472151,-5000.0,0.00025523,7]
[323439040,1713990472174,-5000.0,0.00025523,7]
[323439041,1713990472198,-5000.0,0.00025523,7]
[323439042,1713990472221,-5000.0,0.00025523,7]
[323439043,1713990472245,-5000.0,0.00025523,7]
[323439044,1713990472268,-5000.0,0.00025523,7]
[323439045,1713990472290,-5000.0,0.00025523,7]
[323439046,1713990472319,-5000.0,0.00025523,7]
[323439047,1713990472340,-5000.0,0.00025523,7]
[323439048,1713990472362,-5000.0,0.00025523,7]
[323439049,1713990472384,-5000.0,0.00025523,7]
[323439050,1713990472406,-869.81701656,0.00025523,7]
[323439051,1713990472428,-542.63681481,0.00025523,5]
[323439052,1713990472450,-1916.2425226,0.00025523,5]
[323439053,1713990472472,-675.56351368,0.00025523,10]
[323439054,1713990472494,-595.70519093,0.00025523,6]
[323439055,1713990472516,-509.29701555,0.00025523,7]
[323439056,1713990472538,-943.05230179,0.00025523,5]
[323439057,1713990472563,-397.78611022,0.00025523,7]
[323439058,1713990472586,-193.11851905,0.00025523,15]
[323439059,1713990472611,-2143.45141719,0.00025523,10]
[323439060,1713990472634,-368.07324159,0.00025523,5]
[323439061,1713990472657,-571.6130584,0.00025523,5]
[323439062,1713990472682,-828.11264147,0.00025523,10]
[323439063,1713990472706,-1000.0,0.00025523,10]
[323439064,1713990472730,-4000.0,0.00025523,3]
[323439065,1713990472754,-500.0,0.00025523,10]
[323439066,1713990472776,-1239.67511821,0.00025523,4]
[323439067,1713990472800,-946.98862668,0.00025523,4]
[323439068,1713990472823,-234.64753325,0.00025523,5]
[323439069,1713990472846,-1070.38946787,0.00025523,7]
[323439070,1713990472869,-527.72341792,0.00025523,5]
[323439071,1713990472893,-263.07747343,0.00025523,10]
[323439072,1713990472916,-275.0,0.00025523,14]
[323439073,1713990472939,-3845.18585798,0.00025523,3]
[323439074,1713990472961,-208.3978969,0.00025523,7]
[323439075,1713990472983,-205.37534172,0.00025523,5]
[323439076,1713990473009,-160.98914952,0.00025523,3]
[323439077,1713990473031,-59209.26426883,0.00025523,14]
[323439078,1713990473054,-150.0,0.00025523,3]
[323439079,1713990473076,-604.61765224,0.00025523,10]
[323439080,1713990473100,-554.23708712,0.00025523,29]
[323439081,1713990473124,-1291.12440469,0.00025523,15]
[323439082,1713990473148,-1494.92,0.00025523,14]
[323439083,1713990473173,-221.91,0.00025523,90]
[323439084,1713990473195,-188.0,0.00025523,30]
[323439085,1713990473220,-188.0,0.00025523,30]
[323439086,1713990473244,-188.0,0.00025523,30]
[323439087,1713990473268,-200.0,0.00025523,30]
[323439088,1713990473297,-176.0,0.00025523,30]
[323439089,1713990473323,-391.8757,0.00025523,30]
[323439090,1713990473346,-1323.57121378,0.00025523,30]
[323439091,1713990473369,-1000.0,0.00025523,30]
[323439092,1713990473393,-1000.0,0.00025523,30]
[323439093,1713990473416,-1000.0,0.00025523,30]
[323439094,1713990473440,-500.0,0.00025523,30]
[323439095,1713990473471,-500.0,0.00025523,30]
[323439096,1713990473502,-652.4,0.00025523,30]
[323439097,1713990473533,-1000.0,0.00025523,30]
[323439098,1713990473564,-2000.0,0.00025523,30]
[323439099,1713990473591,-2000.0,0.00025523,30]
[323439100,1713990473618,-2000.0,0.00025523,30]
[323439101,1713990473646,-2000.0,0.00025523,30]
[323439102,1713990473675,-2000.0,0.00025523,30]
[323439103,1713990473701,-2000.0,0.00025523,30]
[323439104,1713990473728,-2000.0,0.00025523,30]
[323439105,1713990473755,-2000.0,0.00025523,30]
[323439106,1713990473782,-2000.0,0.00025523,30]
[323439107,1713990473810,-2000.0,0.00025523,30]
[323439108,1713990473838,-2000.0,0.00025523,30]
[323439109,1713990473861,-2000.0,0.00025523,30]
[323439110,1713990473889,-2000.0,0.00025523,30]
[323439111,1713990473918,-2000.0,0.00025523,30]
[323439112,1713990473947,-2000.0,0.00025523,30]
[323439113,1713990473974,-2000.0,0.00025523,30]
[323439114,1713990474000,-2000.0,0.00025523,30]
[323439115,1713990474027,-2000.0,0.00025523,30]
[323439116,1713990474060,-2000.0,0.00025523,30]
[323439117,1713990474089,-1000.0,0.00025523,30]
[323439118,1713990474117,-2000.0,0.00025523,30]
[323439119,1713990474143,-2000.0,0.00025523,30]
[323439120,1713990474167,-2000.0,0.00025523,30]
[323439121,1713990474190,-2000.0,0.00025523,30]
[323439122,1713990474215,-2000.0,0.00025523,30]
[323439123,1713990474243,-2000.0,0.00025523,30]
[323439124,1713990474269,-2000.0,0.00025523,30]
[323439125,1713990474298,-2000.0,0.00025523,30]
[323439126,1713990474323,-2000.0,0.00025523,30]
[323439127,1713990474346,-2000.0,0.00025523,30]
[323439128,1713990474371,-2000.0,0.00025523,30]
[323439129,1713990474395,-2000.0,0.00025523,30]
[323439130,1713990474424,-2000.0,0.00025523,30]
[323439131,1713990474450,-2000.0,0.00025523,30]
[323439132,1713990474475,-2000.0,0.00025523,30]
[323439133,1713990474499,-2000.0,0.00025523,30]
[323439134,1713990474525,-2000.0,0.00025523,30]
[323439135,1713990474552,-2000.0,0.00025523,30]
[323439136,1713990474583,-2000.0,0.00025523,30]
[323439137,1713990474608,-2000.0,0.00025523,30]
[323439138,1713990474633,-1000.0,0.00025523,30]
[323439139,1713990474659,-2000.0,0.00025523,30]
[323439140,1713990474688,-2000.0,0.00025523,30]
[323439141,1713990474715,-2000.0,0.00025523,30]
[323439142,1713990474740,-2000.0,0.00025523,30]
[323439143,1713990474766,-2000.0,0.00025523,30]
[323439144,1713990474792,-2000.0,0.00025523,30]
[323439145,1713990474819,-2000.0,0.00025523,30]
[323439146,1713990474847,-2000.0,0.00025523,30]
[323439147,1713990474873,-2000.0,0.00025523,30]
[323439148,1713990474899,-2000.0,0.00025523,30]
[323439149,1713990474928,-2000.0,0.00025523,30]
[323439150,1713990474953,-2000.0,0.00025523,30]
[323439151,1713990474979,-2000.0,0.00025523,30]
[323439152,1713990475006,-2000.0,0.00025523,30]
[323439153,1713990475031,-2000.0,0.00025523,30]
[323439154,1713990475059,-2000.0,0.00025523,30]
[323439155,1713990475086,-2000.0,0.00025523,30]
[323439156,1713990475111,-2000.0,0.00025523,30]
[323439157,1713990475137,-2000.0,0.00025523,30]
[323439158,1713990475161,-2000.0,0.00025523,30]
[323439159,1713990475187,-2000.0,0.00025523,30]
[323439160,1713990475211,-2000.0,0.00025523,30]
[323439161,1713990475237,-2000.0,0.00025523,30]
[323439162,1713990475265,-2000.0,0.00025523,30]
[323439163,1713990475292,-1000.0,0.00025523,60]
[323439164,1713990475320,-2000.0,0.00025523,30]
[323439165,1713990475345,-2000.0,0.00025523,30]
[323439166,1713990475371,-2000.0,0.00025523,30]
[323439167,1713990475397,-2000.0,0.00025523,30]
[323439168,1713990475422,-2000.0,0.00025523,30]
[323439169,1713990475447,-2000.0,0.00025523,30]
[323439170,1713990475474,-2000.0,0.00025523,30]
[323439171,1713990475499,-2000.0,0.00025523,30]
[323439172,1713990475525,-511.0,0.00025523,30]
[323439173,1713990475551,-1000.0,0.00025523,30]
[323439174,1713990475575,-1000.0,0.00025523,60]
[323439175,1713990475600,-1000.0,0.00025523,30]
[323439176,1713990475625,-1000.0,0.00025523,60]
[323439177,1713990475649,-1000.0,0.00025523,30]
[323439178,1713990475674,-3199.93718507,0.00025523,60]
[323439179,1713990475699,-966.0,0.00025523,30]
[323439180,1713990475724,-1000.0,0.00025523,30]
[323439181,1713990475748,-1000.0,0.00025523,120]
[323439182,1713990475773,-1000.0,0.00025523,120]
[323439183,1713990475798,-1000.0,0.00025523,60]
[323439184,1713990475824,-1000.0,0.00025523,30]
[323439185,1713990475848,-1000.0,0.00025523,60]
[323439186,1713990475873,-1000.0,0.00025523,30]
[323439187,1713990475897,-1000.0,0.00025523,30]
[323439188,1713990475924,-1000.0,0.00025523,120]
[323439189,1713990475949,-1000.0,0.00025523,60]
[323439190,1713990475974,-1000.0,0.00025523,30]
[323439191,1713990476000,-1000.0,0.00025523,60]
[323439192,1713990476026,-1000.0,0.00025523,30]
[323439193,1713990476052,-1000.0,0.00025523,60]
[323439194,1713990476584,-1000.0,0.00025523,30]
[323439195,1713990476634,-1000.0,0.00025523,30]
[323439196,1713990476658,-1000.0,0.00025523,30]
[323439197,1713990476684,-1000.0,0.00025523,30]
[323439198,1713990476706,-1000.0,0.00025523,30]
[323439199,1713990476730,-1000.0,0.00025523,30]
[323439200,1713990476753,-1000.0,0.00025523,30]
[323439201,1713990476776,-1000.0,0.00025523,30]
[323439202,1713990476803,-1000.0,0.00025523,30]
[323439203,1713990476826,-1000.0,0.00025523,30]